bitfinex/quotes_BTCUSD_20241206
["timestamp","ask_amount","ask_price","bid_price","bid_amount"]
[1733456256626,0.31598591,97330.0,97315.0,0.0772]
[1733456258176,0.205488,97329.0,97315.0,0.0772]
[1733456258376,0.205492,97327.0,97315.0,0.0772]
[1733456258613,0.205525,97312.0,97310.0,0.001448]
[1733456258769,0.10946946,97325.0,97310.0,0.001448]
[1733456258770,0.10946946,97320.0,97310.0,0.001448]
[1733456258969,0.10946946,97325.0,97310.0,0.001448]
[1733456258970,0.20653745,97319.0,97311.0,0.01230576]
[1733456259197,0.00102845,97319.0,97311.0,0.01230576]
[1733456259397,0.00102845,97324.0,97311.0,0.01230576]
[1733456259615,0.10946946,97325.0,97319.0,0.102754]
[1733456259943,0.31496846,97325.0,97312.0,0.01736973]
[1733456260144,0.10946946,97325.0,97312.0,0.01736973]
[1733456260661,0.10946946,97325.0,97313.0,0.102761]
[1733456260866,0.10946946,97325.0,97313.0,0.1037885]
[1733456261114,0.10946946,97325.0,97314.0,0.02366484]
[1733456261316,0.10946946,97325.0,97315.0,0.102759]
[1733456263767,0.10946946,97325.0,97314.0,0.02366484]
[1733456263984,0.10946946,97325.0,97312.0,0.01634218]
[1733456264156,0.00102845,97324.0,97310.0,0.001448]
[1733456264374,0.10946946,97325.0,97310.0,0.001448]
[1733456265759,0.11049791,97325.0,97310.0,0.001448]
[1733456265965,0.00102845,97324.0,97310.0,0.001448]
[1733456266163,0.00102845,97324.0,97311.0,0.02293446]
[1733456266725,0.205501,97323.0,97311.0,0.02293446]
[1733456267062,0.411011,97321.0,97311.0,0.02293446]
[1733456267303,0.205516,97316.0,97311.0,0.02293446]
[1733456267646,0.205516,97316.0,97310.0,0.001448]
[1733456267647,0.00102845,97315.0,97310.0,0.001448]
[1733456267862,0.10946946,97321.0,97310.0,0.001448]
[1733456267863,0.00102845,97320.0,97310.0,0.001448]
[1733456268005,0.205519,97315.0,97310.0,0.001448]
[1733456268206,0.205522,97313.0,97310.0,0.001448]
[1733456268412,0.00102845,97312.0,97310.0,0.001448]
[1733456268616,0.205526,97311.0,97310.0,0.001448]
[1733456268977,0.205522,97313.0,97310.0,0.001448]
[1733456269182,0.00102845,97312.0,97310.0,0.001448]
[1733456271007,0.00102845,97312.0,97311.0,0.0125548]
[1733456271236,0.29605059,97317.0,97311.0,0.0125548]
[1733456271237,0.00102845,97316.0,97311.0,0.0125548]
[1733456271446,0.00102845,97315.0,97311.0,0.0125548]
[1733456272255,0.205515,97317.0,97311.0,0.0125548]
[1733456272511,0.205518,97315.0,97311.0,0.0125548]
[1733456272665,0.00102845,97314.0,97310.0,0.001448]
[1733456273487,0.29700675,97321.0,97310.0,0.001448]
[1733456273488,0.205507,97321.0,97310.0,0.001448]
[1733456273691,0.11049791,97320.0,97310.0,0.001448]
[1733456274002,0.11049791,97320.0,97311.0,0.0125548]
[1733456274430,0.205509,97319.0,97311.0,0.0125548]
[1733456274604,0.205511,97318.0,97311.0,0.0125548]
[1733456276646,0.205511,97318.0,97310.0,0.001448]
[1733456279189,0.00102845,97317.0,97310.0,0.001448]
[1733456280176,0.205516,97316.0,97310.0,0.001448]
[1733456280375,0.00102845,97315.0,97310.0,0.001448]
[1733456280964,0.20552,97314.0,97310.0,0.001448]
[1733456281203,0.00102845,97313.0,97310.0,0.001448]
[1733456281377,0.205524,97312.0,97310.0,0.001448]
[1733456281588,0.00102845,97311.0,97310.0,0.001448]
[1733456281914,0.13835004,97311.0,97310.0,0.001448]
[1733456282271,0.0925588,97311.0,97310.0,0.001448]
[1733456282485,0.00102845,97311.0,97310.0,0.001448]
[1733456283480,0.24235313,97311.0,97310.0,0.001448]
[1733456283706,0.13684042,97311.0,97310.0,0.001448]
[1733456283917,0.4403586,97311.0,97310.0,0.001448]
[1733456284121,0.71398581,97311.0,97310.0,0.001448]
[1733456284332,0.43964296,97311.0,97310.0,0.001448]
[1733456284547,0.43964296,97311.0,97310.0,1e-06]
[1733456286108,0.43964296,97311.0,97310.0,0.001731]
[1733456286645,0.71417072,97311.0,97310.0,0.001731]
[1733456287171,0.43964296,97311.0,97310.0,0.001231]
[1733456287371,0.43961641,97311.0,97310.0,0.001231]
[1733456288391,0.54451133,97311.0,97310.0,0.001231]
[1733456289086,0.43991696,97311.0,97310.0,0.001231]
[1733456291255,0.43991696,97311.0,97310.0,1e-06]
[1733456292712,0.44791696,97311.0,97310.0,0.001001]
[1733456292902,0.722345,97311.0,97310.0,0.001001]
[1733456293141,0.44791696,97311.0,97310.0,0.001001]
[1733456293524,0.14481387,97311.0,97310.0,0.001001]
[1733456293745,0.44830353,97311.0,97310.0,0.001001]
[1733456293917,0.44727508,97311.0,97310.0,0.001001]
[1733456294129,0.45138508,97311.0,97310.0,0.001001]
[1733456298235,0.45138508,97311.0,97310.0,1e-06]
[1733456298236,0.55628,97311.0,97310.0,1e-06]
[1733456298437,0.45138508,97311.0,97310.0,1e-06]
[1733456298687,0.008,97311.0,97310.0,1e-06]
[1733456299387,0.205524,97312.0,97304.0,0.0759]
[1733456299603,0.205521,97314.0,97304.0,0.07603785]
[1733456299743,0.005,97311.0,97310.0,0.001]
[1733456299956,0.205521,97314.0,97305.0,0.01256014]
[1733456300363,0.205533,97308.0,97305.0,0.01256014]
[1733456300766,0.205532,97309.0,97305.0,0.01256014]
[1733456300991,0.205532,97309.0,97306.0,0.01381615]
[1733456301410,0.10946946,97320.0,97306.0,0.11658415]
[1733456301647,0.10946946,97320.0,97307.0,0.0487]
[1733456301818,0.10946946,97320.0,97308.0,0.02423546]
[1733456302015,0.20653745,97319.0,97308.0,0.02423546]
[1733456302191,0.00102845,97319.0,97308.0,0.02423546]
[1733456302430,0.10946946,97320.0,97308.0,0.02423546]
[1733456302592,0.10946946,97320.0,97309.0,0.102765]
[1733456302790,0.10946946,97320.0,97310.0,0.03683225]
[1733456303243,0.10946946,97320.0,97311.0,0.102763]
[1733456303461,0.10946946,97320.0,97310.0,0.03683225]
[1733456304991,0.00102845,97319.0,97307.0,0.0487]
[1733456305213,0.205532,97309.0,97307.0,0.0487]
[1733456305405,0.00102845,97308.0,97307.0,0.0487]
[1733456306606,0.205532,97309.0,97307.0,0.0487]
[1733456306806,0.205526,97312.0,97307.0,0.0487]
[1733456307018,0.205511,97318.0,97308.0,0.01247379]
[1733456307231,0.00102845,97317.0,97308.0,0.01247379]
[1733456307995,0.205522,97314.0,97308.0,0.01247379]
[1733456308189,0.00102845,97313.0,97307.0,0.0487]
[1733456308403,0.00102845,97318.0,97307.0,0.0487]
[1733456308607,0.205516,97316.0,97307.0,0.0487]
[1733456308860,0.20552,97314.0,97308.0,0.01247379]
[1733456309113,0.205516,97316.0,97308.0,0.01247379]
[1733456309321,0.21893892,97320.0,97308.0,0.01247379]
[1733456309322,0.11033446,97320.0,97308.0,0.01247379]
[1733456309524,0.20653845,97319.0,97308.0,0.01247379]
[1733456309751,0.20653845,97319.0,97309.0,0.03427536]
[1733456310181,0.000865,97320.0,97309.0,0.03427536]
[1733456310398,0.11033446,97320.0,97309.0,0.03530301]
[1733456310619,0.11033446,97320.0,97309.0,0.00102765]
[1733456310813,0.11033446,97320.0,97307.0,0.04972754]
[1733456311599,0.11033446,97320.0,97308.0,0.00102754]
[1733456311806,0.11033446,97320.0,97309.0,0.12561754]
[1733456312000,0.11033446,97320.0,97309.0,0.12664508]
[1733456312206,0.11033446,97320.0,97317.0,0.0778]
[1733456312414,0.000865,97320.0,97317.0,0.0778]
[1733456319259,0.000865,97320.0,97309.0,0.10065354]
[1733456319429,0.000865,97320.0,97315.0,0.102758]
[1733456320095,0.000865,97320.0,97310.0,0.01945672]
[1733456320096,0.000865,97320.0,97317.0,0.102756]
[1733456320350,0.000865,97340.0,97320.0,0.0952]
[1733456320573,0.000865,97340.0,97339.0,0.102733]
[1733456320789,0.000865,97340.0,97339.0,0.180533]
[1733456320994,0.000865,97340.0,97339.0,0.225733]
[1733456322262,0.0014479,97340.0,97339.0,0.225733]
[1733456327857,0.0014479,97340.0,97339.0,0.23602849]
[1733456328089,0.0014479,97340.0,97339.0,0.16920865]
[1733456328300,0.0014479,97340.0,97339.0,0.0452]
[1733456335854,0.0014479,97340.0,97339.0,0.15023154]
[1733456336077,0.0014479,97340.0,97339.0,0.22723154]
[1733456336725,0.0014479,97340.0,97339.0,0.27723154]
[1733456336924,0.0017296,97360.0,97339.0,0.27723154]
[1733456336925,0.0017296,97360.0,97359.0,0.227412]
[1733456338440,0.0017296,97360.0,97359.0,0.24768617]
[1733456339811,0.0017296,97360.0,97359.0,0.35271771]
[1733456341551,0.0017296,97360.0,97359.0,0.36305884]
[1733456351219,0.0017296,97360.0,97359.0,0.24768617]
[1733456351424,0.0017296,97360.0,97359.0,0.29799799]
[1733456351629,0.0017296,97360.0,97359.0,0.27772382]
[1733456351745,0.0017296,97360.0,97359.0,0.05031182]
[1733456351946,0.0017296,97360.0,97351.0,0.00102702]
[1733456352196,0.0017296,97360.0,97352.0,0.12328748]
[1733456352400,0.0017296,97360.0,97352.0,0.02056748]
[1733456352857,0.205437,97353.0,97352.0,0.02056748]
[1733456353064,0.205437,97353.0,97340.0,0.02772315]
[1733456353065,0.0821296,97360.0,97341.0,0.102731]
[1733456353293,0.10946946,97351.0,97341.0,0.1261088]
[1733456353493,0.10946946,97351.0,97341.0,0.2288398]
[1733456353610,0.10946946,97351.0,97341.0,0.1261088]
[1733456353810,0.10946946,97351.0,97342.0,0.02294277]
[1733456356118,0.10946946,97351.0,97343.0,0.102729]
[1733456356671,0.10946946,97351.0,97342.0,0.02294277]
[1733456357662,0.10946946,97351.0,97343.0,0.102729]
[1733456358789,0.08315805,97360.0,97355.0,0.102715]
[1733456358790,0.0017296,97360.0,97355.0,0.102715]
[1733456359036,0.0017296,97360.0,97357.0,0.102714]
[1733456359184,0.0017296,97360.0,97359.0,0.102712]
[1733456359392,0.0017296,97360.0,97359.0,0.14413225]
[1733456360237,0.0017296,97360.0,97359.0,0.16489396]
[1733456360423,0.0017296,97360.0,97359.0,0.16592095]
[1733456362794,0.0017296,97360.0,97359.0,0.04244724]
[1733456363014,0.0017296,97360.0,97352.0,0.10374606]
[1733456363296,0.0017296,97360.0,97351.0,0.00102707]
[1733456363647,0.00102845,97359.0,97342.0,0.02294277]
[1733456363858,0.31490846,97353.0,97337.0,0.00102722]
[1733456364049,0.00102845,97352.0,97339.0,0.00161012]
[1733456364264,0.00102845,97352.0,97339.0,0.10434212]
[1733456364396,0.10946946,97353.0,97341.0,0.102731]
[1733456364598,0.10946946,97353.0,97339.0,0.10434212]
[1733456364599,0.10946946,97353.0,97342.0,0.02291256]
[1733456364808,0.10946946,97353.0,97343.0,0.102728]
[1733456365230,0.10946946,97353.0,97343.0,0.205457]
[1733456365517,0.10946946,97353.0,97343.0,0.102728]
[1733456366014,0.00275805,97360.0,97343.0,0.102728]
[1733456366015,0.11222751,97360.0,97343.0,0.102728]
[1733456366257,0.10946946,97353.0,97343.0,0.102728]
[1733456366459,0.10946946,97353.0,97344.0,0.01050405]
[1733456366837,0.10946946,97353.0,97340.0,0.0017296]
[1733456366838,0.10946946,97353.0,97341.0,0.102731]
[1733456368963,0.0017296,97360.0,97342.0,0.10605876]
[1733456369167,0.0017296,97360.0,97359.0,0.102712]
[1733456369371,0.0017296,97360.0,97359.0,0.12640018]
[1733456375351,0.0017296,97360.0,97359.0,0.13655344]
[1733456378773,0.0017296,97360.0,97359.0,0.24158498]
[1733456378971,0.0017296,97360.0,97359.0,0.240558]
[1733456380082,0.0017296,97360.0,97359.0,0.13552646]
[1733456380285,0.0017296,97360.0,97359.0,0.13655345]
[1733456384859,0.0017296,97360.0,97359.0,0.241585]
[1733456385102,0.0017296,97360.0,97359.0,0.240558]
[1733456391258,0.0017296,97360.0,97359.0,0.290558]
[1733456396478,0.0017296,97360.0,97359.0,0.240558]
[1733456396986,0.0017296,97360.0,97359.0,0.290558]
[1733456401743,0.0017296,97360.0,97359.0,0.340558]
[1733456402411,0.09160731,97405.0,97359.0,0.340558]
[1733456402412,0.09160731,97406.0,97403.0,0.102665]
[1733456402614,0.0008644,97420.0,97403.0,0.102665]
[1733456402615,0.0008644,97420.0,97404.0,0.0102665]
[1733456402844,0.0008644,97420.0,97412.0,0.102656]
[1733456403841,0.00103932,97420.0,97412.0,0.102656]
[1733456404255,0.00103932,97420.0,97418.0,0.10265]
[1733456404550,0.00103932,97420.0,97419.0,0.00102636]
[1733456408076,0.00103932,97420.0,97413.0,0.102655]
[1733456408283,0.282,97419.0,97413.0,0.02362851]
[1733456408490,0.00102845,97418.0,97398.0,0.10267]
[1733456408832,0.10946946,97410.0,97401.0,0.102668]
[1733456409042,0.00102845,97416.0,97406.0,0.102663]
[1733456409267,0.00103932,97420.0,97407.0,0.00102661]
[1733456409680,0.00103932,97420.0,97419.0,0.102649]
[1733456410632,0.00103932,97420.0,97408.0,0.10368651]
[1733456410840,0.11050878,97420.0,97408.0,0.10368651]
[1733456411115,0.11050878,97420.0,97410.0,0.102658]
[1733456411566,0.11050878,97420.0,97382.0,0.1239]
[1733456411567,0.205326,97406.0,97382.0,0.1239]
[1733456411776,0.10946946,97392.0,97384.0,0.01027793]
[1733456411976,0.10946946,97392.0,97383.0,0.102687]
[1733456412378,0.10946946,97392.0,97371.0,0.0472]
[1733456412587,0.10946946,97392.0,97380.0,0.10269]
[1733456412708,0.10946946,97392.0,97372.0,0.20875632]
[1733456412709,0.10946946,97392.0,97382.0,0.102688]
[1733456413527,0.10946946,97392.0,97377.0,0.102692]
[1733456413709,0.10946946,97383.0,97373.0,0.00102685]
[1733456413941,0.10946946,97390.0,97373.0,0.00102685]
[1733456414130,0.10946946,97390.0,97377.0,0.102693]
[1733456414329,0.10946946,97390.0,97378.0,0.0102693]
[1733456414532,0.00102845,97389.0,97378.0,0.0102693]
[1733456414677,0.00102845,97389.0,97371.0,0.02072]
[1733456414883,0.10946946,97382.0,97371.0,0.02072]
[1733456415113,0.11049791,97381.0,97359.0,0.102711]
[1733456415356,0.10946946,97370.0,97360.0,0.0205427]
[1733456416456,0.00102845,97369.0,97360.0,0.0205427]
[1733456416692,0.10946946,97370.0,97360.0,0.0205427]
[1733456419519,0.09127029,97400.0,97370.0,0.1027]
[1733456419838,0.205383,97379.0,97358.0,0.02068641]
[1733456420054,0.10946946,97371.0,97359.0,0.10373899]
[1733456420166,0.10946946,97371.0,97361.0,0.10271]
[1733456420374,0.10946946,97371.0,97360.0,0.03321739]
[1733456421366,0.10946946,97371.0,97361.0,0.20644699]
[1733456421915,0.10946946,97371.0,97361.0,0.10373699]
[1733456422095,0.00102845,97370.0,97358.0,0.02068641]
[1733456422296,0.10946946,97371.0,97358.0,0.02068641]
[1733456422717,0.10946946,97371.0,97360.0,0.0017292]
[1733456422912,0.10946946,97371.0,97361.0,0.01261596]
[1733456424365,0.10946946,97371.0,97362.0,0.102709]
[1733456425252,0.10946946,97371.0,97361.0,0.01261596]
[1733456425417,0.00102845,97370.0,97361.0,0.01261596]
[1733456425620,0.00102845,97370.0,97360.0,0.0017292]
[1733456429529,0.205404,97369.0,97360.0,0.0017292]
[1733456429742,0.00102845,97368.0,97360.0,0.0017292]
[1733456431758,0.205408,97367.0,97360.0,0.0017292]
[1733456431971,0.20542,97362.0,97360.0,0.0017292]
[1733456432165,0.00102845,97361.0,97360.0,0.0017292]
[1733456432469,0.00102845,97367.0,97360.0,0.0017292]
[1733456432680,0.410826,97365.0,97360.0,0.0017292]
[1733456432893,0.00102845,97364.0,97360.0,0.0017292]
[1733456433260,0.205378,97382.0,97360.0,0.0017292]
[1733456433439,0.10946946,97370.0,97360.0,0.01217392]
[1733456434077,0.10946946,97370.0,97361.0,0.10271]
[1733456434274,0.10946946,97370.0,97360.0,0.01217392]
[1733456437031,0.205404,97369.0,97360.0,0.01217392]
[1733456437163,0.205404,97369.0,97361.0,0.01260495]
[1733456437804,0.10946946,97370.0,97361.0,0.01260495]
[1733456439520,0.00102845,97369.0,97361.0,0.01260495]
[1733456439910,0.20643245,97369.0,97361.0,0.01260495]
[1733456441270,0.20643245,97369.0,97360.0,0.0017292]
[1733456442001,0.00102845,97369.0,97360.0,0.0017292]
[1733456442178,0.10946946,97370.0,97360.0,0.0017292]
[1733456442718,0.205404,97369.0,97360.0,0.0017292]
[1733456443143,0.10946946,97370.0,97360.0,0.0017292]
[1733456443360,0.10946946,97370.0,97361.0,0.01044452]
[1733456444697,0.10946946,97370.0,97366.0,0.102704]
[1733456445636,0.10946946,97370.0,97362.0,0.102709]
[1733456446628,0.10946946,97370.0,97367.0,0.102703]
[1733456446833,0.0008646,97370.0,97367.0,0.102703]
[1733456447034,0.0008646,97370.0,97368.0,0.02158565]
[1733456447230,0.0008646,97370.0,97369.0,0.102702]
[1733456447437,0.0008646,97370.0,97368.0,0.02158565]
[1733456448775,0.0008646,97370.0,97361.0,0.01147151]
[1733456448998,0.0008646,97370.0,97362.0,0.102709]
[1733456453220,0.0008646,97370.0,97361.0,0.01147151]
[1733456453425,0.0008646,97370.0,97361.0,0.01044452]
[1733456453675,0.0008646,97370.0,97362.0,0.01353136]
[1733456453676,0.205404,97369.0,97362.0,0.01353136]
[1733456453867,0.205404,97369.0,97360.0,0.0017292]
[1733456454594,0.11033406,97370.0,97360.0,0.0017292]
[1733456454595,0.20542,97362.0,97360.0,0.0017292]
[1733456455750,0.10503154,97361.0,97360.0,0.0017292]
[1733456455950,0.44676551,97361.0,97360.0,0.0017292]
[1733456456472,0.67489499,97361.0,97360.0,0.0017292]
[1733456456663,0.44676551,97361.0,97360.0,0.0017292]
[1733456457218,0.67577467,97361.0,97360.0,0.0017292]
[1733456457426,0.44676551,97361.0,97360.0,0.0017292]
[1733456458565,0.62576551,97361.0,97360.0,0.0017292]
[1733456459811,0.63276551,97361.0,97360.0,0.0027292]
[1733456459982,0.62576551,97361.0,97360.0,0.0017292]
[1733456460392,0.63476551,97361.0,97360.0,0.0027292]
[1733456460601,0.63476551,97361.0,97360.0,0.0017292]
[1733456460798,0.9098266,97361.0,97360.0,0.0017292]
[1733456461003,0.58502621,97361.0,97360.0,0.0017292]
[1733456461208,0.53772621,97361.0,97360.0,0.0017292]
[1733456461436,0.50585232,97361.0,97360.0,0.0017292]
[1733456462012,0.53764608,97361.0,97360.0,0.0027292]
[1733456462215,0.54564608,97361.0,97360.0,0.0027292]
[1733456462431,0.52864608,97361.0,97360.0,0.0017292]
[1733456462638,0.53264608,97361.0,97360.0,0.0017292]
[1733456463054,0.52832856,97361.0,97360.0,0.0017292]
[1733456463276,0.53232856,97361.0,97360.0,0.0017292]
[1733456464582,0.73722348,97361.0,97360.0,2e-07]
[1733456464805,0.73722348,97361.0,97350.0,0.0017292]
[1733456464806,0.95371365,97361.0,97350.0,0.0017292]
[1733456465054,1.02094105,97351.0,97350.0,2e-07]
[1733456465292,1.13332549,97351.0,97350.0,2e-07]
[1733456466225,1.56657882,97351.0,97350.0,2e-07]
[1733456466447,1.40757651,97351.0,97350.0,2e-07]
[1733456466673,1.13332549,97351.0,97350.0,2e-07]
[1733456467125,1.13332549,97351.0,97350.0,0.0010002]
[1733456467126,1.14232549,97351.0,97350.0,0.0010002]
[1733456467572,0.79232549,97351.0,97350.0,0.0010002]
[1733456467830,1.01053173,97351.0,97350.0,0.0010002]
[1733456468043,1.19341575,97351.0,97350.0,0.0010002]
[1733456468264,0.69217354,97351.0,97350.0,2e-07]
[1733456468498,0.82933392,97351.0,97350.0,2e-07]
[1733456468939,0.79259949,97351.0,97350.0,2e-07]
[1733456469148,0.49259949,97351.0,97350.0,2e-07]
[1733456469407,0.40117354,97351.0,97350.0,2e-07]
[1733456469665,0.009,97351.0,97350.0,2e-07]
[1733456471284,0.205438,97353.0,97350.0,2e-07]
[1733456472375,0.205437,97354.0,97350.0,2e-07]
[1733456473101,0.11033406,97370.0,97359.0,0.102712]
[1733456473465,0.11033406,97370.0,97360.0,0.0102712]
[1733456473466,0.11050882,97370.0,97360.0,0.0102712]
[1733456473666,0.11050882,97370.0,97358.0,0.102713]
[1733456474089,0.00103936,97370.0,97365.0,0.102705]
[1733456474313,0.00103936,97370.0,97367.0,0.182304]
[1733456477076,0.00103936,97370.0,97367.0,0.0796]
[1733456477256,0.00103936,97370.0,97332.0,0.19467178]
[1733456477257,0.00103936,97370.0,97356.0,0.0781]
[1733456477455,0.11050882,97370.0,97357.0,0.01476745]
[1733456478212,0.11050882,97370.0,97357.0,0.11748145]
[1733456478416,0.11050882,97370.0,97357.0,0.01476745]
[1733456478771,0.11050882,97370.0,97356.0,0.0781]
[1733456479479,0.25,97357.0,97356.0,0.0781]
[1733456480909,0.25,97357.0,97352.0,0.0493]
[1733456480910,0.455431,97357.0,97352.0,0.0493]
[1733456481109,0.205431,97356.0,97352.0,0.0493]
[1733456481476,0.25,97353.0,97352.0,0.0493]
[1733456481680,0.25,97353.0,97352.0,0.06204002]
[1733456485474,0.25,97353.0,97352.0,0.24947156]
[1733456486570,0.25,97353.0,97352.0,0.14444002]
[1733456487308,0.25,97353.0,97352.0,0.0493]
[1733456487785,0.455437,97353.0,97350.0,2e-07]
[1733456487970,0.660876,97353.0,97350.0,2e-07]
[1733456488181,0.455437,97353.0,97350.0,2e-07]
[1733456488388,0.25,97351.0,97350.0,2e-07]
[1733456496076,0.25,97351.0,97350.0,0.11319692]
[1733456496289,0.25,97351.0,97350.0,0.18869692]
[1733456498717,0.24798,97351.0,97350.0,0.18869692]
[1733456498967,0.24798,97351.0,97350.0,0.33902846]
[1733456499325,0.25,97357.0,97350.0,0.33902846]
[1733456499506,0.25,97357.0,97356.0,0.102715]
[1733456500783,0.25,97357.0,97351.0,0.047323]
[1733456501189,0.25,97357.0,97350.0,0.0453002]
[1733456501633,0.205431,97356.0,97350.0,2e-07]
[1733456501865,0.25,97357.0,97350.0,2e-07]
[1733456502346,0.45543,97357.0,97350.0,2e-07]
[1733456502559,0.45543,97357.0,97350.0,0.00755022]
[1733456503222,0.25,97357.0,97350.0,0.00755022]
[1733456503439,0.10946946,97361.0,97350.0,0.00755022]
[1733456503440,0.25,97351.0,97350.0,0.00755022]
[1733456505816,0.25,97351.0,97350.0,2e-07]
[1733456513544,0.25,97351.0,97340.0,0.1044616]
[1733456513545,0.25,97351.0,97340.0,0.0994618]
[1733456514511,0.25,97341.0,97340.0,0.0994618]
[1733456515385,0.25,97341.0,97340.0,0.20449334]
[1733456515576,0.25,97341.0,97340.0,0.25111891]
[1733456517352,0.25,97341.0,97340.0,0.25284911]
[1733456520459,0.0008651,97360.0,97340.0,0.25284911]
[1733456520460,0.25,97342.0,97340.0,0.25284911]
[1733456520693,0.25,97342.0,97341.0,0.10503154]
[1733456520899,0.25,97342.0,97341.0,0.15638996]
[1733456523284,0.25,97343.0,97342.0,0.10273]
[1733456523487,0.25,97343.0,97342.0,0.20776154]
[1733456525278,0.25,97343.0,97341.0,0.05135842]
[1733456525620,0.25,97343.0,97340.0,0.0017302]
[1733456526403,0.205442,97351.0,97340.0,0.0017302]
[1733456526792,0.10946946,97352.0,97340.0,0.0017302]
[1733456527420,0.25,97341.0,97340.0,0.0017302]
[1733456527634,0.25,97341.0,97340.0,0.13748758]
[1733456528534,0.25,97343.0,97340.0,0.34295158]
[1733456528741,0.25,97343.0,97342.0,0.10273]
[1733456528992,0.25,97343.0,97342.0,0.25195899]
[1733456530574,0.25,97343.0,97342.0,0.37795899]
[1733456531435,0.0008652,97350.0,97349.0,0.102723]
[1733456533460,0.0008652,97350.0,97349.0,0.2087817]
[1733456533720,0.0008652,97350.0,97349.0,0.28865454]
[1733456533829,0.0008652,97350.0,97349.0,0.35622003]
[1733456538870,0.0008652,97350.0,97349.0,0.49564868]
[1733456539232,0.0008652,97350.0,97349.0,0.40342003]
[1733456541305,0.0008652,97350.0,97349.0,0.49558784]
[1733456541943,0.0008652,97350.0,97349.0,0.49058784]
[1733456542518,0.0008652,97350.0,97349.0,0.39842003]
[1733456542719,0.0008652,97350.0,97349.0,0.49058784]
[1733456543194,0.0008652,97350.0,97349.0,0.70582149]
[1733456543195,2e-07,97350.0,97349.0,0.70582149]
[1733456543487,0.0008651,97360.0,97349.0,0.70582149]
[1733456543488,1e-07,97360.0,97359.0,0.1984]
[1733456543693,1e-07,97360.0,97359.0,0.39573434]
[1733456543861,0.25,97386.0,97385.0,0.102685]
[1733456544083,0.25,97386.0,97385.0,0.20771654]
[1733456544518,0.25,97389.0,97387.0,0.102683]
[1733456544721,0.25,97389.0,97388.0,0.02077145]
[1733456544932,0.25,97389.0,97388.0,0.12682975]
[1733456545356,4.8e-07,97390.0,97389.0,0.175681]
[1733456545545,0.25,97408.0,97389.0,0.175681]
[1733456545546,0.25,97408.0,97401.0,0.0754]
[1733456545749,0.25006587,97408.0,97407.0,0.102662]
[1733456545977,0.25006587,97408.0,97407.0,0.24110554]
[1733456546395,6.587e-05,97408.0,97407.0,0.24110554]
[1733456548276,6.587e-05,97408.0,97407.0,0.28830554]
[1733456550226,6.587e-05,97408.0,97407.0,0.48670554]
[1733456550227,8.7e-07,97408.0,97407.0,0.48670554]
[1733456550429,0.0008644,97420.0,97419.0,0.073]
[1733456550637,0.25,97439.0,97438.0,0.102629]
[1733456550870,0.25,97439.0,97438.0,0.20766054]
[1733456551494,0.0008651,97440.0,97438.0,0.20766054]
[1733456551778,0.0008651,97440.0,97439.0,0.10605766]
[1733456551964,0.00144817,97440.0,97439.0,0.10605766]
[1733456552218,0.00144817,97440.0,97439.0,0.14718943]
[1733456553297,0.00144817,97440.0,97439.0,0.04113177]
[1733456553517,0.25144817,97440.0,97435.0,0.102632]
[1733456553731,0.25144817,97440.0,97432.0,0.102634]
[1733456553931,0.25144817,97440.0,97431.0,0.02041093]
[1733456553932,0.00347803,97439.0,97431.0,0.02041093]
[1733456554267,0.205271,97432.0,97412.0,0.102656]
[1733456554493,0.10946946,97430.0,97418.0,0.02057911]
[1733456554695,0.10946946,97430.0,97419.0,0.01256107]
[1733456554850,0.00277001,97429.0,97419.0,0.01256107]
[1733456555252,0.00277001,97429.0,97420.0,0.102648]
[1733456555723,0.10946946,97430.0,97420.0,0.102648]
[1733456555928,0.10946946,97430.0,97421.0,0.02394686]
[1733456556171,0.00345485,97429.0,97421.0,0.02394686]
[1733456556378,0.10946946,97430.0,97421.0,0.02394686]
[1733456558133,0.10946946,97430.0,97419.0,0.01256107]
[1733456558337,0.25,97422.0,97412.0,0.0102752]
[1733456558830,0.00345149,97421.0,97418.0,0.02008825]
[1733456560429,0.25,97419.0,97418.0,0.02008825]
[1733456560603,0.25,97419.0,97418.0,0.04262818]
[1733456560809,0.25,97419.0,97418.0,0.14527818]
[1733456561014,0.25,97419.0,97418.0,0.04262818]
[1733456561015,0.25346743,97419.0,97418.0,0.04262818]
[1733456561615,0.25346743,97419.0,97418.0,0.14765972]
[1733456562402,0.00346743,97419.0,97418.0,0.14765972]
[1733456562608,0.00346743,97419.0,97418.0,0.14868609]
[1733456562829,0.25,97428.0,97419.0,0.307947]
[1733456563214,0.25,97428.0,97418.0,0.14868609]
[1733456563215,0.25,97428.0,97420.0,0.15172121]
[1733456563385,0.25,97431.0,97428.0,0.102639]
[1733456563839,0.25,97431.0,97428.0,0.205278]
[1733456564430,0.25,97435.0,97434.0,0.123]
[1733456564641,0.08938603,97435.0,97434.0,0.2290577]
[1733456564846,0.04833203,97435.0,97434.0,0.30513154]
[1733456565050,0.04833203,97435.0,97434.0,0.37094599]
[1733456565469,0.00144817,97440.0,97435.0,0.102632]
[1733456565662,0.00144817,97440.0,97439.0,0.102628]
[1733456565880,0.00144817,97440.0,97439.0,0.20868566]
[1733456566087,0.00144817,97440.0,97439.0,0.20765954]
[1733456566287,0.00144817,97440.0,97439.0,0.26525278]
[1733456566646,0.00144817,97440.0,97423.0,0.05]
[1733456566647,0.00144817,97440.0,97429.0,0.147738]
[1733456566869,0.11091763,97440.0,97423.0,0.02099531]
[1733456567086,0.00144817,97440.0,97436.0,0.10263]
[1733456567286,0.00144817,97440.0,97437.0,0.010263]
[1733456567494,0.25144817,97440.0,97438.0,0.102629]
[1733456567728,0.25144817,97440.0,97437.0,0.010263]
[1733456567874,0.25144817,97440.0,97438.0,0.102629]
[1733456568106,0.25144817,97440.0,97439.0,0.0215522]
[1733456570124,0.25144817,97440.0,97430.0,0.00102623]
[1733456570325,0.25144817,97440.0,97431.0,0.10503154]
[1733456570529,0.25144817,97440.0,97437.0,0.10263]
[1733456570765,0.25144817,97440.0,97437.0,0.20526]
[1733456570976,0.25144817,97440.0,97438.0,0.03113178]
[1733456571429,0.00276065,97439.0,97438.0,0.03113178]
[1733456571630,0.00345081,97439.0,97438.0,0.03113178]
[1733456571801,0.00144817,97440.0,97438.0,0.03113178]
[1733456572213,0.00144817,97440.0,97439.0,0.102628]
[1733456572418,0.00144817,97440.0,97439.0,0.1263699]
[1733456573687,0.00144817,97440.0,97439.0,0.23140144]
[1733456574219,0.00144817,97440.0,97439.0,0.35240144]
[1733456574904,0.151731,97450.0,97449.0,0.102617]